[Event "Titled Tuesday Blitz November 14 Late 2023"]
[White "Van Osch, Mees"]
[Black "Golubev, Mikhail"]
[WhiteFideId "1035967"]
[BlackFideId "14100983"]
[WhiteElo "2355"]
[BlackElo "2617"]
[Result "0-1"]
[Round "3"]
[TimeControl "180+1"]
[Date "2023.11.14"]
[WhiteClock "0:00:26"]
[BlackClock "0:00:39"]
[Board "131"]

1. e4 {[%clk 0:03:00]}  c5 {[%clk 0:02:59]} 2. Nf3 {[%clk 0:03:00]}  d6 {[%clk 0:02:59]} 3. d4 {[%clk 0:03:00]}  Nf6 {[%clk 0:02:59]} 4. Nc3 {[%clk 0:02:59]}  cxd4 {[%clk 0:02:59]} 5. Nxd4 {[%clk 0:03:00]}  g6 {[%clk 0:03:00]} 6. Be3 {[%clk 0:02:57]}  Bg7 {[%clk 0:03:00]} 7. f3 {[%clk 0:02:58]}  Nc6 {[%clk 0:03:00]} 8. Bc4 {[%clk 0:02:58]}  O-O {[%clk 0:02:59]} 9. Bb3 {[%clk 0:02:58]}  Qa5 {[%clk 0:02:52]} 10. Qd2 {[%clk 0:02:57]}  Nxd4 {[%clk 0:02:51]} 11. Bxd4 {[%clk 0:02:57]}  Be6 {[%clk 0:02:51]} 12. O-O-O {[%clk 0:02:56]}  b5 {[%clk 0:02:49]} 13. Kb1 {[%clk 0:02:55]}  b4 {[%clk 0:02:49]} 14. Nd5 {[%clk 0:02:54]}  Bxd5 {[%clk 0:02:48]} 15. Bxd5 {[%clk 0:02:48]}  Nxd5 {[%clk 0:02:35]} 16. Bxg7 {[%clk 0:02:47]}  Nc3+ {[%clk 0:02:30]} 17. Bxc3 {[%clk 0:02:33]}  bxc3 {[%clk 0:02:30]} 18. Qxc3 {[%clk 0:02:34]}  Qxc3 {[%clk 0:02:29]} 19. bxc3 {[%clk 0:02:35]}  Rfc8 {[%clk 0:02:17]} 20. Rd3 {[%clk 0:02:35]}  Rc7 {[%clk 0:02:10]} 21. Kc1 {[%clk 0:02:25]}  Rac8 {[%clk 0:02:07]} 22. Kd2 {[%clk 0:02:25]}  Rb8 {[%clk 0:02:07]} 23. Ra1 {[%clk 0:02:26]}  Rc5 {[%clk 0:01:51]} 24. Rd4 {[%clk 0:02:18]}  Kg7 {[%clk 0:01:50]} 25. Rb4 {[%clk 0:02:15]}  Rbc8 {[%clk 0:01:46]} 26. Rb3 {[%clk 0:02:09]}  a5 {[%clk 0:01:38]} 27. a4 {[%clk 0:02:09]}  Kf6 {[%clk 0:01:35]} 28. Raa3 {[%clk 0:02:09]}  Rc4 {[%clk 0:01:23]} 29. Rb5 {[%clk 0:02:07]}  R8c5 {[%clk 0:01:22]} 30. Rxc5 {[%clk 0:02:01]}  Rxc5 {[%clk 0:01:22]} 31. Kd3 {[%clk 0:02:01]}  Ke5 {[%clk 0:01:18]} 32. Rb3 {[%clk 0:01:58]}  d5 {[%clk 0:01:12]} 33. Rb5 {[%clk 0:01:35]}  Rxb5 {[%clk 0:01:11]} 34. axb5 {[%clk 0:01:36]}  a4 {[%clk 0:01:08]} 35. Kd2 {[%clk 0:01:24]}  dxe4 {[%clk 0:01:03]} 36. fxe4 {[%clk 0:01:19]}  f5 {[%clk 0:01:00]} 37. exf5 {[%clk 0:01:15]}  gxf5 {[%clk 0:01:00]} 38. c4 {[%clk 0:01:01]}  Kd6 {[%clk 0:00:56]} 39. b6 {[%clk 0:00:28]}  Kc6 {[%clk 0:00:55]} 40. c5 {[%clk 0:00:29]}  e5 {[%clk 0:00:54]} 41. Kc3 {[%clk 0:00:28]}  a3 {[%clk 0:00:38]} 42. Kb3 {[%clk 0:00:28]}  e4 {[%clk 0:00:38]} 43. Kxa3 {[%clk 0:00:26]}  e3 {[%clk 0:00:39]} 0-1


[Site "https://www.chess.com"]

[Event "Titled Tuesday Blitz November 14 Late 2023"]
[White "Biernacki, Mark"]
[Black "Leiva, Gianmarco"]
[WhiteFideId "2082322"]
[BlackFideId "3804399"]
[WhiteElo "2331"]
[BlackElo "2595"]
[Result "1-0"]
[Round "3"]
[TimeControl "180+1"]
[Date "2023.11.14"]
[WhiteClock "0:00:11"]
[BlackClock "0:00:08"]
[Board "132"]

1. e4 {[%clk 0:03:00]}  e5 {[%clk 0:02:40]} 2. Nf3 {[%clk 0:02:54]}  Nc6 {[%clk 0:02:40]} 3. Bc4 {[%clk 0:02:55]}  Bc5 {[%clk 0:02:39]} 4. c3 {[%clk 0:02:55]}  Nf6 {[%clk 0:02:38]} 5. d4 {[%clk 0:02:54]}  exd4 {[%clk 0:02:38]} 6. e5 {[%clk 0:02:54]}  d5 {[%clk 0:02:35]} 7. Be2 {[%clk 0:02:54]}  Ne4 {[%clk 0:02:31]} 8. cxd4 {[%clk 0:02:54]}  Bb4+ {[%clk 0:02:31]} 9. Bd2 {[%clk 0:02:55]}  Nxd2 {[%clk 0:02:22]} 10. Nbxd2 {[%clk 0:02:55]}  O-O {[%clk 0:02:19]} 11. O-O {[%clk 0:02:56]}  Ne7 {[%clk 0:02:10]} 12. Rc1 {[%clk 0:02:54]}  c6 {[%clk 0:02:10]} 13. a3 {[%clk 0:02:52]}  Ba5 {[%clk 0:02:10]} 14. b4 {[%clk 0:02:49]}  Bb6 {[%clk 0:02:09]} 15. Nb3 {[%clk 0:02:50]}  Ng6 {[%clk 0:02:03]} 16. a4 {[%clk 0:02:24]}  f6 {[%clk 0:01:53]} 17. b5 {[%clk 0:02:13]}  fxe5 {[%clk 0:01:29]} 18. bxc6 {[%clk 0:02:11]}  e4 {[%clk 0:01:28]} 19. cxb7 {[%clk 0:02:10]}  Bxb7 {[%clk 0:01:27]} 20. Ne5 {[%clk 0:01:52]}  Nxe5 {[%clk 0:01:27]} 21. dxe5 {[%clk 0:01:53]}  a5 {[%clk 0:00:12]} 22. Nc5 {[%clk 0:01:46]}  Bxc5 {[%clk 0:00:12]} 23. Rxc5 {[%clk 0:01:44]}  Qe7 {[%clk 0:00:11]} 24. Qd4 {[%clk 0:01:37]}  Rae8 {[%clk 0:00:08]} 25. Rb1 {[%clk 0:00:58]}  Ba8 {[%clk 0:00:08]} 26. Rxa5 {[%clk 0:00:48]}  Qxe5 {[%clk 0:00:03]} 27. Qxe5 {[%clk 0:00:47]}  Rxe5 {[%clk 0:00:04]} 28. Rd1 {[%clk 0:00:46]}  Ref5 {[%clk 0:00:02]} 29. f3 {[%clk 0:00:44]}  exf3 {[%clk 0:00:01]} 30. Bxf3 {[%clk 0:00:44]}  Kh8 {[%clk 0:00:02]} 31. h3 {[%clk 0:00:33]}  h5 {[%clk 0:00:02]} 32. Rd4 {[%clk 0:00:28]}  g6 {[%clk 0:00:02]} 33. Ra6 {[%clk 0:00:24]}  Kh7 {[%clk 0:00:02]} 34. Ra7+ {[%clk 0:00:24]}  Kh6 {[%clk 0:00:02]} 35. a5 {[%clk 0:00:22]}  R5f7 {[%clk 0:00:03]} 36. Rxf7 {[%clk 0:00:20]}  Rxf7 {[%clk 0:00:03]} 37. Be2 {[%clk 0:00:15]}  Re7 {[%clk 0:00:01]} 38. Bd3 {[%clk 0:00:14]}  Re1+ {[%clk 0:00:02]} 39. Kf2 {[%clk 0:00:14]}  Ra1 {[%clk 0:00:02]} 40. a6 {[%clk 0:00:14]}  Ra2+ {[%clk 0:00:01]} 41. Kg3 {[%clk 0:00:13]}  Ra3 {[%clk 0:00:02]} 42. Kh2 {[%clk 0:00:13]}  Bc6 {[%clk 0:00:03]} 43. Kg1 {[%clk 0:00:13]}  Ra5 {[%clk 0:00:03]} 44. Kh2 {[%clk 0:00:13]}  Bb5 {[%clk 0:00:03]} 45. Rxd5 {[%clk 0:00:12]}  Rxa6 {[%clk 0:00:02]} 46. Rxb5 {[%clk 0:00:12]}  Rd6 {[%clk 0:00:03]} 47. Be4 {[%clk 0:00:12]}  Rd4 {[%clk 0:00:03]} 48. Bf3 {[%clk 0:00:11]}  Rd6 {[%clk 0:00:04]} 49. Rc5 {[%clk 0:00:11]}  Rf6 {[%clk 0:00:04]} 50. Rc6 {[%clk 0:00:11]}  Rf7 {[%clk 0:00:05]} 51. Be4 {[%clk 0:00:12]}  Rg7 {[%clk 0:00:06]} 52. h4 {[%clk 0:00:11]}  Rg8 {[%clk 0:00:05]} 53. Rd6 {[%clk 0:00:11]}  Rg7 {[%clk 0:00:06]} 54. Kg3 {[%clk 0:00:11]}  Rg8 {[%clk 0:00:06]} 55. Kf4 {[%clk 0:00:11]}  Rf8+ {[%clk 0:00:07]} 56. Ke5 {[%clk 0:00:11]}  Re8+ {[%clk 0:00:07]} 57. Kd4 {[%clk 0:00:11]}  Rg8 {[%clk 0:00:07]} 58. Ke5 {[%clk 0:00:11]}  Re8+ {[%clk 0:00:07]} 59. Re6 {[%clk 0:00:12]}  Rxe6+ {[%clk 0:00:07]} 60. Kxe6 {[%clk 0:00:12]}  g5 {[%clk 0:00:08]} 61. hxg5+ {[%clk 0:00:04]}  Kxg5 {[%clk 0:00:08]} 62. Bf5 {[%clk 0:00:05]}  Kf4 {[%clk 0:00:05]} 63. Bh3 {[%clk 0:00:06]}  Kg5 {[%clk 0:00:05]} 64. Ke5 {[%clk 0:00:06]}  Kg6 {[%clk 0:00:06]} 65. Kf4 {[%clk 0:00:06]}  Kf6 {[%clk 0:00:06]} 66. Kg3 {[%clk 0:00:06]}  Kg5 {[%clk 0:00:07]} 67. Kf3 {[%clk 0:00:06]}  Kh4 {[%clk 0:00:07]} 68. Bd7 {[%clk 0:00:05]}  Kg5 {[%clk 0:00:07]} 69. Bc8 {[%clk 0:00:06]}  Kh4 {[%clk 0:00:08]} 70. Ke4 {[%clk 0:00:04]}  Kg3 {[%clk 0:00:08]} 71. Bh3 {[%clk 0:00:04]}  Kh4 {[%clk 0:00:08]} 72. Ke5 {[%clk 0:00:04]}  Kg5 {[%clk 0:00:09]} 73. Ke6 {[%clk 0:00:05]}  Kg6 {[%clk 0:00:09]} 74. Ke7 {[%clk 0:00:05]}  Kg7 {[%clk 0:00:10]} 75. Bd7 {[%clk 0:00:04]}  Kg6 {[%clk 0:00:10]} 76. Be6 {[%clk 0:00:05]}  Kg5 {[%clk 0:00:11]} 77. Bh3 {[%clk 0:00:05]}  Kg6 {[%clk 0:00:11]} 78. Kf8 {[%clk 0:00:06]}  Kf6 {[%clk 0:00:11]} 79. Kg8 {[%clk 0:00:07]}  Kg6 {[%clk 0:00:12]} 80. Kh8 {[%clk 0:00:07]}  Kh6 {[%clk 0:00:12]} 81. Kg8 {[%clk 0:00:05]}  Kg6 {[%clk 0:00:13]} 82. Kf8 {[%clk 0:00:05]}  Kf6 {[%clk 0:00:13]} 83. Ke8 {[%clk 0:00:05]}  Kg6 {[%clk 0:00:14]} 84. Kd8 {[%clk 0:00:05]}  Kf6 {[%clk 0:00:14]} 85. Kd7 {[%clk 0:00:06]}  Kf7 {[%clk 0:00:14]} 86. Kd6 {[%clk 0:00:06]}  Kf6 {[%clk 0:00:15]} 87. Kd5 {[%clk 0:00:07]}  Kg5 {[%clk 0:00:14]} 88. Ke4 {[%clk 0:00:08]}  Kh4 {[%clk 0:00:15]} 89. Ke3 {[%clk 0:00:09]}  Kg5 {[%clk 0:00:15]} 90. Kf2 {[%clk 0:00:09]}  Kh4 {[%clk 0:00:16]} 91. Kg1 {[%clk 0:00:10]}  Kg3 {[%clk 0:00:16]} 92. Kh1 {[%clk 0:00:09]}  Kf4 {[%clk 0:00:02]} 93. Bc8 {[%clk 0:00:10]}  Kg3 {[%clk 0:00:02]} 94. Bd7 {[%clk 0:00:10]}  Kf4 {[%clk 0:00:03]} 95. Kh2 {[%clk 0:00:10]}  Kg5 {[%clk 0:00:03]} 96. Kh3 {[%clk 0:00:10]}  Kf4 {[%clk 0:00:03]} 97. Kh4 {[%clk 0:00:10]}  Ke5 {[%clk 0:00:03]} 98. Bc6 {[%clk 0:00:11]}  Kf4 {[%clk 0:00:03]} 99. Kxh5 {[%clk 0:00:10]}  Kg3 {[%clk 0:00:04]} 100. Kg5 {[%clk 0:00:10]}  Kh2 {[%clk 0:00:04]} 101. g4 {[%clk 0:00:10]}  Kg3 {[%clk 0:00:05]} 102. Kh5 {[%clk 0:00:10]}  Kf4 {[%clk 0:00:05]} 103. g5 {[%clk 0:00:11]}  Ke5 {[%clk 0:00:06]} 104. Kh6 {[%clk 0:00:11]}  Kf5 {[%clk 0:00:06]} 105. g6 {[%clk 0:00:11]}  Kf6 {[%clk 0:00:07]} 106. g7 {[%clk 0:00:11]}  Kf7 {[%clk 0:00:07]} 107. Bd5+ {[%clk 0:00:12]}  Ke7 {[%clk 0:00:08]} 108. g8=Q {[%clk 0:00:12]}  Kf6 {[%clk 0:00:08]} 109. Qg6+ {[%clk 0:00:11]}  Ke5 {[%clk 0:00:09]} 110. Qg5+ {[%clk 0:00:12]}  Kd6 {[%clk 0:00:09]} 111. Bg8 {[%clk 0:00:11]}  Kd7 {[%clk 0:00:09]} 112. Bh7 {[%clk 0:00:12]}  Ke8 {[%clk 0:00:09]} 113. Qg6+ {[%clk 0:00:12]}  Kf8 {[%clk 0:00:09]} 114. Kg5 {[%clk 0:00:12]}  Ke7 {[%clk 0:00:10]} 115. Kf5 {[%clk 0:00:12]}  Kf8 {[%clk 0:00:10]} 116. Ke5 {[%clk 0:00:12]}  Ke7 {[%clk 0:00:11]} 117. Qg7+ {[%clk 0:00:12]}  Kd8 {[%clk 0:00:08]} 118. Kd6 {[%clk 0:00:11]} 1-0


[Site "https://www.chess.com"]

[Event "Titled Tuesday Blitz November 14 Late 2023"]
[White "chessjazda"]
[Black "Chylewski, Patryk"]
[BlackFideId "1186191"]
[WhiteElo "2338"]
[BlackElo "2532"]
[Result "0-1"]
[Round "3"]
[TimeControl "180+1"]
[Date "2023.11.14"]
[WhiteClock "0:00:26"]
[BlackClock "0:00:17"]
[Board "133"]

1. e4 {[%clk 0:03:00]}  c6 {[%clk 0:02:59]} 2. Qe2 {[%clk 0:02:59]}  d5 {[%clk 0:02:54]} 3. c4 {[%clk 0:02:58]}  dxe4 {[%clk 0:02:52]} 4. Nc3 {[%clk 0:02:56]}  g6 {[%clk 0:02:24]} 5. Nxe4 {[%clk 0:02:53]}  Bg7 {[%clk 0:02:24]} 6. Nf3 {[%clk 0:02:53]}  Nf6 {[%clk 0:02:24]} 7. d4 {[%clk 0:02:52]}  Bg4 {[%clk 0:02:14]} 8. Nxf6+ {[%clk 0:02:49]}  Bxf6 {[%clk 0:02:15]} 9. Be3 {[%clk 0:02:48]}  Bxf3 {[%clk 0:02:07]} 10. Qxf3 {[%clk 0:02:40]}  Bxd4 {[%clk 0:02:07]} 11. Rd1 {[%clk 0:02:39]}  Qa5+ {[%clk 0:02:07]} 12. Bd2 {[%clk 0:02:33]}  Qe5+ {[%clk 0:01:55]} 13. Be2 {[%clk 0:02:31]}  Bxb2 {[%clk 0:01:52]} 14. O-O {[%clk 0:02:30]}  O-O {[%clk 0:01:51]} 15. Bh6 {[%clk 0:02:25]}  Re8 {[%clk 0:01:47]} 16. Qb3 {[%clk 0:02:13]}  Na6 {[%clk 0:01:34]} 17. Qxb7 {[%clk 0:02:01]}  Nc5 {[%clk 0:01:32]} 18. Qxc6 {[%clk 0:02:00]}  Rac8 {[%clk 0:01:21]} 19. Qf3 {[%clk 0:01:56]}  Ne6 {[%clk 0:01:11]} 20. Rd5 {[%clk 0:01:51]}  Nd4 {[%clk 0:01:02]} 21. Qd3 {[%clk 0:01:06]}  Nxe2+ {[%clk 0:00:43]} 22. Kh1 {[%clk 0:01:04]}  Qe6 {[%clk 0:00:30]} 23. Be3 {[%clk 0:00:57]}  Nc3 {[%clk 0:00:26]} 24. Ra5 {[%clk 0:00:40]}  Qxc4 {[%clk 0:00:24]} 25. Qxc4 {[%clk 0:00:36]}  Rxc4 {[%clk 0:00:25]} 26. Rxa7 {[%clk 0:00:36]}  Ra4 {[%clk 0:00:24]} 27. Rxa4 {[%clk 0:00:34]}  Nxa4 {[%clk 0:00:25]} 28. Rd1 {[%clk 0:00:32]}  Rc8 {[%clk 0:00:21]} 29. h4 {[%clk 0:00:32]}  Bf6 {[%clk 0:00:17]} 30. h5 {[%clk 0:00:30]}  gxh5 {[%clk 0:00:17]} 31. Rd4 {[%clk 0:00:26]}  Bxd4 {[%clk 0:00:17]} 0-1


[Site "https://www.chess.com"]

[Event "Titled Tuesday Blitz November 14 Late 2023"]
[White "Omariev, Maksim"]
[Black "Li, Hui"]
[WhiteFideId "4193423"]
[BlackFideId "15400310"]
[WhiteElo "2504"]
[BlackElo "2330"]
[Result "1-0"]
[Round "3"]
[TimeControl "180+1"]
[Date "2023.11.14"]
[WhiteClock "0:00:10"]
[BlackClock "0:00:04"]
[Board "134"]

1. b3 {[%clk 0:02:50]}  d5 {[%clk 0:02:56]} 2. Bb2 {[%clk 0:02:50]}  c5 {[%clk 0:02:56]} 3. h3 {[%clk 0:02:48]}  f6 {[%clk 0:02:51]} 4. g4 {[%clk 0:02:42]}  e5 {[%clk 0:02:51]} 5. Bg2 {[%clk 0:02:43]}  Nc6 {[%clk 0:02:51]} 6. d3 {[%clk 0:02:38]}  Be6 {[%clk 0:02:50]} 7. e3 {[%clk 0:02:39]}  Bd6 {[%clk 0:02:45]} 8. Nd2 {[%clk 0:02:39]}  Nge7 {[%clk 0:02:45]} 9. Ne2 {[%clk 0:02:39]}  Qd7 {[%clk 0:02:44]} 10. Ng3 {[%clk 0:02:39]}  O-O-O {[%clk 0:02:33]} 11. Qe2 {[%clk 0:02:30]}  Kb8 {[%clk 0:02:33]} 12. O-O-O {[%clk 0:02:25]}  Rhe8 {[%clk 0:02:16]} 13. Kb1 {[%clk 0:02:25]}  Ka8 {[%clk 0:02:01]} 14. Rde1 {[%clk 0:02:21]}  g6 {[%clk 0:01:44]} 15. Rhf1 {[%clk 0:02:15]}  f5 {[%clk 0:01:43]} 16. gxf5 {[%clk 0:02:09]}  gxf5 {[%clk 0:01:44]} 17. f4 {[%clk 0:01:59]}  e4 {[%clk 0:01:42]} 18. dxe4 {[%clk 0:01:49]}  dxe4 {[%clk 0:01:41]} 19. Nh5 {[%clk 0:01:43]}  Ng8 {[%clk 0:01:27]} 20. Ng7 {[%clk 0:01:31]}  Re7 {[%clk 0:01:23]} 21. Nxe6 {[%clk 0:01:29]}  Qxe6 {[%clk 0:01:23]} 22. Nc4 {[%clk 0:01:29]}  Bc7 {[%clk 0:01:19]} 23. h4 {[%clk 0:01:22]}  Nf6 {[%clk 0:01:11]} 24. Bh3 {[%clk 0:01:21]}  h5 {[%clk 0:01:06]} 25. Bxf6 {[%clk 0:01:04]}  Qxf6 {[%clk 0:01:06]} 26. Qxh5 {[%clk 0:01:05]}  b5 {[%clk 0:01:03]} 27. Na3 {[%clk 0:01:00]}  b4 {[%clk 0:00:45]} 28. Nc4 {[%clk 0:00:54]}  Rf7 {[%clk 0:00:39]} 29. Qg5 {[%clk 0:00:45]}  Rh8 {[%clk 0:00:35]} 30. h5 {[%clk 0:00:20]}  Qxg5 {[%clk 0:00:30]} 31. fxg5 {[%clk 0:00:21]}  Rxh5 {[%clk 0:00:31]} 32. Bxf5 {[%clk 0:00:21]}  Rxg5 {[%clk 0:00:26]} 33. Bxe4 {[%clk 0:00:22]}  Rxf1 {[%clk 0:00:12]} 34. Bxc6+ {[%clk 0:00:21]}  Kb8 {[%clk 0:00:12]} 35. Rxf1 {[%clk 0:00:22]}  Bd8 {[%clk 0:00:10]} 36. e4 {[%clk 0:00:18]}  Kc7 {[%clk 0:00:10]} 37. Bd5 {[%clk 0:00:19]}  Rg2 {[%clk 0:00:09]} 38. a3 {[%clk 0:00:18]}  bxa3 {[%clk 0:00:09]} 39. Nxa3 {[%clk 0:00:16]}  Bg5 {[%clk 0:00:06]} 40. Nc4 {[%clk 0:00:16]}  Kd7 {[%clk 0:00:05]} 41. Rf7+ {[%clk 0:00:16]}  Ke8 {[%clk 0:00:03]} 42. Rxa7 {[%clk 0:00:17]}  Rg1+ {[%clk 0:00:02]} 43. Kb2 {[%clk 0:00:16]}  Bh4 {[%clk 0:00:01]} 44. Rh7 {[%clk 0:00:14]}  Bf2 {[%clk 0:00:01]} 45. Nd6+ {[%clk 0:00:12]}  Kd8 {[%clk 0:00:01]} 46. Nf5 {[%clk 0:00:08]}  Bd4+ {[%clk 0:00:02]} 47. Nxd4 {[%clk 0:00:08]}  cxd4 {[%clk 0:00:02]} 48. Rh3 {[%clk 0:00:08]}  Kd7 {[%clk 0:00:02]} 49. Rd3 {[%clk 0:00:09]}  Kd6 {[%clk 0:00:03]} 50. Rxd4 {[%clk 0:00:10]}  Ke5 {[%clk 0:00:04]} 51. Rc4 {[%clk 0:00:10]}  Rd1 {[%clk 0:00:04]} 52. b4 {[%clk 0:00:10]}  Rg1 {[%clk 0:00:03]} 53. b5 {[%clk 0:00:10]}  Rg6 {[%clk 0:00:03]} 54. Rc6 {[%clk 0:00:10]}  Rg3 {[%clk 0:00:02]} 55. b6 {[%clk 0:00:09]}  Rg7 {[%clk 0:00:01]} 56. Re6+ {[%clk 0:00:09]}  Kd4 {[%clk 0:00:02]} 57. b7 {[%clk 0:00:10]}  Rg8 {[%clk 0:00:01]} 58. Ra6 {[%clk 0:00:08]}  Rb8 {[%clk 0:00:02]} 59. Ra8 {[%clk 0:00:08]}  Rxb7+ {[%clk 0:00:02]} 60. Bxb7 {[%clk 0:00:08]}  Kc5 {[%clk 0:00:03]} 61. Bd5 {[%clk 0:00:08]}  Kb6 {[%clk 0:00:03]} 62. Rc8 {[%clk 0:00:08]}  Ka5 {[%clk 0:00:03]} 63. Rb8 {[%clk 0:00:08]}  Ka6 {[%clk 0:00:03]} 64. Rb3 {[%clk 0:00:09]}  Ka7 {[%clk 0:00:04]} 65. e5 {[%clk 0:00:08]}  Ka6 {[%clk 0:00:05]} 66. e6 {[%clk 0:00:09]}  Ka5 {[%clk 0:00:04]} 67. e7 {[%clk 0:00:10]} 1-0


[Site "https://www.chess.com"]

[Event "Titled Tuesday Blitz November 14 Late 2023"]
[White "Sreyas Payyappat"]
[Black "rikchessmx"]
[WhiteFideId "46674969"]
[WhiteElo "2502"]
[BlackElo "2321"]
[Result "0-1"]
[Round "3"]
[TimeControl "180+1"]
[Date "2023.11.14"]
[WhiteClock "0:00:04"]
[BlackClock "0:00:40"]
[Board "135"]

1. e4 {[%clk 0:03:00]}  e5 {[%clk 0:02:58]} 2. Nf3 {[%clk 0:03:00]}  Nc6 {[%clk 0:02:51]} 3. Bc4 {[%clk 0:02:58]}  Bc5 {[%clk 0:02:51]} 4. c3 {[%clk 0:02:57]}  Qf6 {[%clk 0:02:51]} 5. O-O {[%clk 0:02:55]}  Nge7 {[%clk 0:02:46]} 6. d3 {[%clk 0:02:48]}  h6 {[%clk 0:02:45]} 7. Be3 {[%clk 0:02:46]}  d6 {[%clk 0:02:45]} 8. d4 {[%clk 0:02:43]}  Bb6 {[%clk 0:02:44]} 9. Na3 {[%clk 0:02:37]}  O-O {[%clk 0:02:43]} 10. Qd2 {[%clk 0:02:26]}  Ng6 {[%clk 0:02:43]} 11. Nc2 {[%clk 0:02:24]}  Nf4 {[%clk 0:02:36]} 12. Bxf4 {[%clk 0:02:20]}  exf4 {[%clk 0:02:35]} 13. Rae1 {[%clk 0:02:14]}  g5 {[%clk 0:02:34]} 14. e5 {[%clk 0:02:13]}  Qg6 {[%clk 0:02:32]} 15. Bd3 {[%clk 0:02:09]}  Qh5 {[%clk 0:02:31]} 16. d5 {[%clk 0:02:03]}  Nxe5 {[%clk 0:02:29]} 17. Nxe5 {[%clk 0:02:02]}  dxe5 {[%clk 0:02:29]} 18. Rxe5 {[%clk 0:02:02]}  f3 {[%clk 0:02:23]} 19. Qd1 {[%clk 0:01:28]}  Bg4 {[%clk 0:02:16]} 20. Rfe1 {[%clk 0:00:51]}  fxg2 {[%clk 0:02:08]} 21. Be2 {[%clk 0:00:49]}  Qh4 {[%clk 0:01:57]} 22. Nd4 {[%clk 0:00:34]}  Bh3 {[%clk 0:01:49]} 23. Bf3 {[%clk 0:00:22]}  f5 {[%clk 0:01:44]} 24. Bxg2 {[%clk 0:00:16]}  Bg4 {[%clk 0:01:41]} 25. Qd3 {[%clk 0:00:14]}  Rf6 {[%clk 0:01:16]} 26. h3 {[%clk 0:00:08]}  Bh5 {[%clk 0:01:13]} 27. Rxf5 {[%clk 0:00:08]}  Raf8 {[%clk 0:01:11]} 28. Ree5 {[%clk 0:00:08]}  Bg6 {[%clk 0:01:09]} 29. Rxf6 {[%clk 0:00:07]}  Bxd3 {[%clk 0:01:08]} 30. Rxf8+ {[%clk 0:00:04]}  Kxf8 {[%clk 0:01:08]} 31. Re6 {[%clk 0:00:02]}  Bxd4 {[%clk 0:01:06]} 32. cxd4 {[%clk 0:00:03]}  Qxd4 {[%clk 0:01:06]} 33. Rxh6 {[%clk 0:00:04]}  Kg7 {[%clk 0:01:05]} 34. Re6 {[%clk 0:00:04]}  Bc4 {[%clk 0:01:03]} 35. Re7+ {[%clk 0:00:05]}  Kf6 {[%clk 0:01:03]} 36. Re6+ {[%clk 0:00:05]}  Kf7 {[%clk 0:01:02]} 37. Rh6 {[%clk 0:00:05]}  Bxd5 {[%clk 0:01:01]} 38. Rh7+ {[%clk 0:00:05]}  Kg6 {[%clk 0:01:01]} 39. Rd7 {[%clk 0:00:06]}  c6 {[%clk 0:00:50]} 40. Rd6+ {[%clk 0:00:06]}  Kf7 {[%clk 0:00:48]} 41. Rd7+ {[%clk 0:00:07]}  Ke6 {[%clk 0:00:48]} 42. Rxb7 {[%clk 0:00:07]}  g4 {[%clk 0:00:43]} 43. Rg7 {[%clk 0:00:04]}  Qxg7 {[%clk 0:00:40]} 0-1


[Site "https://www.chess.com"]

[Event "Titled Tuesday Blitz November 14 Late 2023"]
[White "Kopacz, Grzegorz"]
[Black "Osmak, Yuliia"]
[WhiteFideId "1109880"]
[BlackFideId "14101602"]
[WhiteElo "2271"]
[BlackElo "2500"]
[Result "0-1"]
[Round "3"]
[TimeControl "180+1"]
[Date "2023.11.14"]
[WhiteClock "0:00:00"]
[BlackClock "0:00:28"]
[Board "136"]

1. c4 {[%clk 0:02:57]}  e5 {[%clk 0:02:56]} 2. Nc3 {[%clk 0:02:56]}  Bb4 {[%clk 0:02:54]} 3. Qb3 {[%clk 0:02:55]}  Nc6 {[%clk 0:02:52]} 4. e3 {[%clk 0:02:54]}  Nf6 {[%clk 0:02:41]} 5. g3 {[%clk 0:02:50]}  O-O {[%clk 0:02:37]} 6. Bg2 {[%clk 0:02:50]}  a5 {[%clk 0:02:29]} 7. a3 {[%clk 0:02:47]}  Bc5 {[%clk 0:02:23]} 8. Nge2 {[%clk 0:02:47]}  Re8 {[%clk 0:02:22]} 9. O-O {[%clk 0:02:46]}  d6 {[%clk 0:02:20]} 10. Nd5 {[%clk 0:02:40]}  Nxd5 {[%clk 0:02:16]} 11. cxd5 {[%clk 0:02:39]}  Ne7 {[%clk 0:02:14]} 12. d4 {[%clk 0:02:37]}  exd4 {[%clk 0:02:13]} 13. Nxd4 {[%clk 0:02:37]}  Bxd4 {[%clk 0:02:13]} 14. exd4 {[%clk 0:02:37]}  Nf5 {[%clk 0:02:08]} 15. Qc3 {[%clk 0:02:22]}  Qf6 {[%clk 0:01:59]} 16. Qxc7 {[%clk 0:02:00]}  Nxd4 {[%clk 0:01:55]} 17. Be3 {[%clk 0:01:58]}  Nf3+ {[%clk 0:01:33]} 18. Kh1 {[%clk 0:01:50]}  Bg4 {[%clk 0:01:30]} 19. Qc3 {[%clk 0:01:37]}  Qf5 {[%clk 0:01:25]} 20. Bf4 {[%clk 0:01:28]}  Qh5 {[%clk 0:01:16]} 21. h3 {[%clk 0:01:07]}  Rac8 {[%clk 0:01:09]} 22. Qd3 {[%clk 0:00:59]}  Ne5 {[%clk 0:00:52]} 23. Bxe5 {[%clk 0:00:54]}  Rxe5 {[%clk 0:00:53]} 24. Kg1 {[%clk 0:00:29]}  Be2 {[%clk 0:00:52]} 25. Qd2 {[%clk 0:00:24]}  Bxf1 {[%clk 0:00:51]} 26. Rxf1 {[%clk 0:00:24]}  Qe2 {[%clk 0:00:41]} 27. Qxa5 {[%clk 0:00:24]}  Qxb2 {[%clk 0:00:41]} 28. Qa7 {[%clk 0:00:19]}  g6 {[%clk 0:00:40]} 29. h4 {[%clk 0:00:18]}  h5 {[%clk 0:00:39]} 30. Bh3 {[%clk 0:00:17]}  Rc1 {[%clk 0:00:38]} 31. Qb8+ {[%clk 0:00:16]}  Kg7 {[%clk 0:00:35]} 32. Qxd6 {[%clk 0:00:16]}  Rxf1+ {[%clk 0:00:34]} 33. Bxf1 {[%clk 0:00:16]}  Re1 {[%clk 0:00:33]} 34. Kg2 {[%clk 0:00:10]}  Qa1 {[%clk 0:00:32]} 35. Bd3 {[%clk 0:00:10]}  Qd4 {[%clk 0:00:30]} 36. Bb5 {[%clk 0:00:00]}  Rd1 {[%clk 0:00:28]} 0-1


[Site "https://www.chess.com"]